[Event "World Junior U20 Open 2018"]
[Site "Gebze"]
[Date "2018.09.08"]
[Round "5.14"]
[White "Janik, Igor"]
[Black "Lomasov, Semyon"]
[Result "1-0"]
[ECO "E11"]
[WhiteElo "2447"]
[BlackElo "2545"]
[Annotator "ChessBase"]
[PlyCount "111"]
[EventDate "2018.09.05"]
[EventType "swiss"]
[EventCountry "TUR"]
[SourceTitle "playchess.com"]
[Source "ChessBase"]
[SourceQuality "1"]
[TimeControl "40/5400+30:1800+30"]

1. d4 {[%emt 0:00:30]} Nf6 {[%emt 0:00:30]} 2. c4 {[%emt 0:00:30]} e6 {[%emt 0:00:30]} 3. g3 {[%emt 0:00:00]} Bb4+ {[%emt 0:01:30]} 4. Bd2 {[%emt 0:00:00]} a5 {[%emt 0:00:30]} 5. Bg2 {[%emt 0:00:00]} d5 {[%emt 0:00:30]} 6. a3 {[%emt 0:06:00]} Bxd2+ {[%emt 0:06:30]} 7. Nxd2 {[%emt 0:00:30]} O-O {[%emt 0:00:30]} 8. Ngf3 {[%emt 0:00:30]} Nbd7 {[%emt 0:08:30]} 9. Rc1 {[%emt 0:01:30]} c6 {[%emt 0:00:30]} 10. O-O {[%emt 0:00:30]} b6 {[%emt 0:00:30]} 11. Qc2 {[%emt 0:02:30]} Ba6 {[%emt 0:04:30]} 12. Rfe1 {[%emt 0:13:30]} Rc8 {[%emt 0:00:30]} 13. e4 {[%emt 0:00:30]} dxe4 {[%emt 0:24:30]} 14. Nxe4 {[%emt 0:01:30]} Nxe4 {[%emt 0:00:00]} 15. Rxe4 {[%emt 0:01:30]} Nf6 {[%emt 0:00:00]} 16. Rh4 {[%emt 0:00:30]} c5 {[%emt 0:05:30]} 17. dxc5 {[%emt 0:06:30]} bxc5 {[%emt 0:04:30]} 18. Ne5 {[%emt 0:02:30]} h6 {[%emt 0:04:30]} 19. Qc3 {[%emt 0:05:30]} a4 {[%emt 0:06:30]} 20. Bc6 {[%emt 0:11:30]} Qc7 {[%emt 0:07:30]} 21. Re1 {[%emt 0:02:30]} Bb7 {[%emt 0:02:30]} 22. Bxa4 {[%emt 0:01:30]} Rfd8 {[%emt 0:00:49]} 23. Bc2 {[%emt 0:04:30]} Qd6 {[%emt 0:01:40]} 24. Bd3 {[%emt 0:07:30]} Rc7 {[%emt 0:01:26]} 25. Re3 {[%emt 0:02:30]} Nh7 {[%emt 0:08:15]} 26. Qc2 {[%emt 0:05:30]} f5 {[%emt 0:01:18]} 27. f3 {[%emt 0:08:16]} Ng5 {[%emt 0:01:18]} 28. Qc3 {[%emt 0:01:26]} Rcc8 {[%emt 0:01:22]} 29. Kf2 {[%emt 0:01:31]} Qc7 {[%emt 0:00:38]} 30. Be2 {[%emt 0:01:11]} Rd6 {[%emt 0:01:32]} 31. b4 {[%emt 0:00:32]} Rcd8 {[%emt 0:00:42]} 32. Nd3 {[%emt 0:02:21]} Rd4 {[%emt 0:00:59]} 33. Kg2 {[%emt 0:04:35]} cxb4 {[%emt 0:03:43]} 34. axb4 {[%emt 0:00:13]} e5 {[%emt 0:01:37]} 35. Nxe5 {[%emt 0:00:33]} Rxh4 {[%emt 0:01:21]} 36. gxh4 {[%emt 0:00:08]} f4 {[%emt 0:00:17]} 37. Rd3 {[%emt 0:02:34]} Re8 {[%emt 0:00:00]} 38. hxg5 {[%emt 0:00:10]} Rxe5 {[%emt 0:00:59]} 39. Rd8+ {[%emt 0:00:44]} Kf7 {[%emt 0:00:30]} 40. Rd7+ {[%emt 0:00:00]} Qxd7 {[%emt 0:00:42]} 41. Qxe5 {[%emt 0:00:16]} Qg4+ {[%emt 0:00:00]} 42. Kf2 {[%emt 0:00:30]} Qh4+ {[%emt 0:04:22]} 43. Kf1 {[%emt 0:05:30]} Qxh2 {[%emt 0:05:30]} 44. Qc7+ {[%emt 0:00:30]} Kg6 {[%emt 0:00:30]} 45. Qxb7 {[%emt 0:02:30]} Qh1+ {[%emt 0:00:00]} 46. Kf2 {[%emt 0:00:00]} Qh2+ {[%emt 0:00:00]} 47. Ke1 {[%emt 0:00:00]} Qg1+ {[%emt 0:00:30]} 48. Kd2 {[%emt 0:00:30]} Qe3+ {[%emt 0:00:00]} 49. Kd1 {[%emt 0:00:00]} Qb3+ {[%emt 0:00:00]} 50. Ke1 {[%emt 0:00:00]} Qc3+ {[%emt 0:00:30]} 51. Kf1 {[%emt 0:00:00]} Kxg5 {[%emt 0:02:30]} 52. Qe7+ {[%emt 0:01:00]} Kh5 {[%emt 0:00:00]} 53. b5 {[%emt 0:00:30]} g5 {[%emt 0:00:00]} 54. Qe6 {[%emt 0:00:00]} Qc1+ {[%emt 0:01:30]} 55. Kg2 {[%emt 0:00:00]} Qc2 {[%emt 0:00:30]} 56. b6 {[%emt 0:00:30]} 1-0

[Event "World Junior U20 Open 2018"]
[Site "Gebze"]
[Date "2018.09.08"]
[Round "5.20"]
[White "Nikitenko, Mihail"]
[Black "Sunilduth Lyna, Narayanan"]
[Result "0-1"]
[ECO "C85"]
[WhiteElo "2368"]
[BlackElo "2573"]
[Annotator "RC"]
[PlyCount "76"]
[EventDate "2018.09.05"]
[EventType "swiss"]
[EventCountry "TUR"]
[SourceTitle "playchess.com"]
[Source "ChessBase"]
[SourceQuality "1"]
[TimeControl "40/5400+30:1800+30"]

1. e4 {[%emt 0:00:30]} e5 {[%emt 0:00:30]} 2. Nf3 {[%emt 0:00:30]} Nc6 {[%emt 0:00:30]} 3. Bb5 {[%emt 0:00:30]} a6 {[%emt 0:00:30]} 4. Ba4 {[%emt 0:00:30]} Nf6 {[%emt 0:00:30]} 5. O-O {[%emt 0:00:00]} Be7 {[%emt 0:00:00]} 6. Bxc6 {[%emt 0:00:00]} dxc6 {[%emt 0:00:00]} 7. d3 {[%emt 0:00:00]} Nd7 {[%emt 0:00:00]} 8. Nbd2 {[%emt 0:00:00]} O-O {[%emt 0:00:00]} 9. Nc4 {[%emt 0:00:00]} f6 {[%emt 0:00:30]} 10. Nh4 {[%emt 0:00:00]} g6 {[%emt 0:00:30]} 11. g3 {[%emt 0:17:30]} Nb6 {[%emt 0:10:30]} 12. Nxb6 {[%emt 0:07:30]} cxb6 {[%emt 0:00:30]} 13. Ng2 {[%emt 0:00:00]} Be6 {[%emt 0:10:30]} 14. b3 {[%emt 0:03:00]} a5 {[%emt 0:09:30]} 15. Bb2 {[%emt 0:02:30]} a4 {[%emt 0:02:30]} 16. Kh1 {[%emt 0:03:30]} b5 {[%emt 0:06:30]} 17. Rb1 {[%emt 0:00:30]} Bc5 {[%emt 0:08:30]} 18. f4 {[%emt 0:09:30]} Bd4 {[%emt 0:00:30]} 19. c3 {[%emt 0:00:30]} Bb6 {[%emt 0:00:30]} 20. c4 {[%emt 0:00:30]} axb3 {[%emt 0:00:30]} 21. axb3 {[%emt 0:00:30]} Qd6 {[%emt 0:00:30]} 22. f5 {[%emt 0:00:30]} gxf5 {[%emt 0:00:30]} 23. exf5 {[%emt 0:00:30]} Bf7 {[%emt 0:00:30]} 24. Qg4+ {[%emt 0:00:30]} Kh8 {[%emt 0:00:30]} 25. Ne1 {[%emt 0:00:30]} Rg8 {[%emt 0:00:30]} 26. Qh4 {[%emt 0:00:30]} h5 {[%emt 0:21:30]} 27. Qe4 {[%emt 0:26:30]} Rg4 {[%emt 0:01:30]} 28. Qe2 {[%emt 0:02:30]} Rd8 {[%emt 0:01:30]} 29. Nf3 {[%emt 0:03:30]} Qxd3 {[%emt 0:04:42]} 30. Qxd3 {[%emt 0:00:30]} Rxd3 {[%emt 0:00:30]} 31. Bxe5 {[%emt 0:00:00]} Kg7 {[%emt 0:01:03]} 32. Ba1 {[%emt 0:02:00]} Bc5 {[%emt 0:04:18]} 33. b4 {[%emt 0:07:01]} Bf8 {[%emt 0:00:00]} 34. cxb5 {[%emt 0:01:55]} Bd5 {[%emt 0:02:30]} 35. Kg2 {[%emt 0:00:03]} Rxb4 {[%emt 0:00:00]} 36. Rxb4 {[%emt 0:01:18]} Bxb4 {[%emt 0:00:00]} 37. bxc6 {[%emt 0:00:09]} bxc6 {[%emt 0:00:06]} 38. h3 {[%emt 0:00:00]} Bc3 {[%emt 0:00:29]} 0-1

[Event "World Junior U20 Open 2018"]
[Site "Gebze"]
[Date "2018.09.08"]
[Round "5.33"]
[White "Muradli, Mahammad"]
[Black "Pang, Tao"]
[Result "1/2-1/2"]
[ECO "D37"]
[WhiteElo "2407"]
[BlackElo "2290"]
[Annotator "ChessBase"]
[PlyCount "67"]
[EventDate "2018.09.05"]
[EventType "swiss"]
[EventCountry "TUR"]
[SourceTitle "playchess.com"]
[Source "ChessBase"]
[SourceQuality "1"]
[TimeControl "40/5400+30:1800+30"]

1. d4 {[%emt 0:00:30]} d5 {[%emt 0:00:30]} 2. Nf3 {[%emt 0:00:30]} Nf6 {[%emt 0:00:30]} 3. c4 {[%emt 0:00:30]} e6 {[%emt 0:00:00]} 4. Nc3 {[%emt 0:00:00]} Nbd7 {[%emt 0:00:00]} 5. Bf4 {[%emt 0:02:00]} dxc4 {[%emt 0:02:30]} 6. e3 {[%emt 0:00:30]} Nb6 {[%emt 0:03:30]} 7. Bxc4 {[%emt 0:13:30]} Nxc4 {[%emt 0:01:30]} 8. Qa4+ {[%emt 0:00:00]} Bd7 {[%emt 0:00:00]} 9. Qxc4 {[%emt 0:00:00]} Bd6 {[%emt 0:00:00]} 10. Ne5 {[%emt 0:10:30]} Nh5 {[%emt 0:28:30]} 11. O-O {[%emt 0:12:30]} Nxf4 {[%emt 0:00:30]} 12. exf4 {[%emt 0:00:30]} O-O {[%emt 0:10:30]} 13. Rfe1 {[%emt 0:02:30]} Bxe5 {[%emt 0:06:30]} 14. dxe5 {[%emt 0:08:30]} Bc6 {[%emt 0:00:30]} 15. b4 {[%emt 0:05:30]} Bd5 {[%emt 0:06:30]} 16. Nxd5 {[%emt 0:05:30]} Qxd5 {[%emt 0:00:30]} 17. Qxc7 {[%emt 0:03:30]} Rac8 {[%emt 0:00:00]} 18. Qe7 {[%emt 0:07:30]} Rfe8 {[%emt 0:01:00]} 19. Qh4 {[%emt 0:00:30]} Red8 {[%emt 0:01:30]} 20. h3 {[%emt 0:01:30]} Qd2 {[%emt 0:01:30]} 21. a3 {[%emt 0:02:30]} Rd3 {[%emt 0:03:30]} 22. Qg4 {[%emt 0:08:24]} Rxa3 {[%emt 0:02:30]} 23. Rab1 {[%emt 0:06:08]} Ra2 {[%emt 0:05:30]} 24. Rf1 {[%emt 0:01:34]} Rb2 {[%emt 0:02:30]} 25. f5 {[%emt 0:03:31]} Rxb1 {[%emt 0:09:45]} 26. Rxb1 {[%emt 0:00:01]} h5 {[%emt 0:01:23]} 27. Qe4 {[%emt 0:02:09]} Qc2 {[%emt 0:00:38]} 28. Qxc2 {[%emt 0:00:53]} Rxc2 {[%emt 0:00:04]} 29. Rd1 {[%emt 0:00:55]} exf5 {[%emt 0:04:39]} 30. Rd8+ {[%emt 0:00:45]} Kh7 {[%emt 0:00:03]} 31. Rd7 {[%emt 0:00:11]} Kg6 {[%emt 0:03:47]} 32. Rxb7 {[%emt 0:00:30]} Rb2 {[%emt 0:00:00]} 33. f4 {[%emt 0:01:20]} h4 {[%emt 0:00:00]} 34. Rb5 {[%emt 0:00:58]} 1/2-1/2

[Event "World Junior U20 Open 2018"]
[Site "Gebze"]
[Date "2018.09.08"]
[Round "5.34"]
[White "Gorshtein, Ido"]
[Black "Tarlabasi, Emirhan"]
[Result "1-0"]
[ECO "D35"]
[WhiteElo "2383"]
[BlackElo "2193"]
[Annotator "NA"]
[PlyCount "65"]
[EventDate "2018.09.05"]
[EventType "swiss"]
[EventCountry "TUR"]
[SourceTitle "playchess.com"]
[Source "ChessBase"]
[SourceQuality "1"]
[TimeControl "40/5400+30:1800+30"]

1. c4 {[%emt 0:00:30]} e6 {[%emt 0:00:30]} 2. Nc3 {[%emt 0:00:00]} d5 {[%emt 0:00:30]} 3. cxd5 {[%emt 0:00:00]} exd5 {[%emt 0:00:30]} 4. d4 {[%emt 0:00:00]} Be7 {[%emt 0:00:00]} 5. Qc2 {[%emt 0:00:00]} c6 {[%emt 0:00:00]} 6. Bf4 {[%emt 0:00:30]} Nf6 {[%emt 0:01:30]} 7. e3 {[%emt 0:00:30]} O-O {[%emt 0:03:30]} 8. Bd3 {[%emt 0:00:30]} Nbd7 {[%emt 0:02:30]} 9. Nf3 {[%emt 0:00:30]} Re8 {[%emt 0:02:30]} 10. O-O {[%emt 0:01:30]} Nf8 {[%emt 0:00:30]} 11. Rab1 {[%emt 0:03:30]} a5 {[%emt 0:04:30]} 12. h3 {[%emt 0:06:30]} Ne6 {[%emt 0:02:30]} 13. Bh2 {[%emt 0:02:30]} g6 {[%emt 0:03:30]} 14. a3 {[%emt 0:00:30]} b6 {[%emt 0:06:30]} 15. b4 {[%emt 0:02:30]} axb4 {[%emt 0:02:30]} 16. axb4 {[%emt 0:01:30]} Bb7 {[%emt 0:02:30]} 17. Ne5 {[%emt 0:00:30]} Nd7 {[%emt 0:07:30]} 18. Rfd1 {[%emt 0:06:30]} Nxe5 {[%emt 0:06:30]} 19. dxe5 {[%emt 0:00:30]} b5 {[%emt 0:05:30]} 20. Kh1 {[%emt 0:03:30]} Qb6 {[%emt 0:04:30]} 21. f4 {[%emt 0:01:30]} Qxe3 {[%emt 0:07:30]} 22. Re1 {[%emt 0:00:30]} Qd4 {[%emt 0:04:30]} 23. Ne2 {[%emt 0:02:30]} Qa7 {[%emt 0:05:30]} 24. f5 {[%emt 0:00:30]} Nf8 {[%emt 0:05:30]} 25. e6 {[%emt 0:00:30]} Bf6 {[%emt 0:02:54]} 26. exf7+ {[%emt 0:00:30]} Kxf7 {[%emt 0:00:04]} 27. fxg6+ {[%emt 0:00:30]} hxg6 {[%emt 0:00:13]} 28. Nf4 {[%emt 0:02:30]} Rxe1+ {[%emt 0:04:36]} 29. Rxe1 {[%emt 0:00:00]} Qd4 {[%emt 0:00:54]} 30. Bxg6+ {[%emt 0:01:00]} Kg8 {[%emt 0:00:17]} 31. Bh7+ {[%emt 0:06:30]} Nxh7 {[%emt 0:08:39]} 32. Qg6+ {[%emt 0:00:30]} Bg7 {[%emt 0:00:06]} 33. Qe6+ {[%emt 0:00:00]} 1-0

[Event "World Junior U20 Open 2018"]
[Site "Gebze"]
[Date "2018.09.08"]
[Round "5.40"]
[White "Secheres, Adrian-Simion"]
[Black "Lee, Jun Hyeok"]
[Result "0-1"]
[ECO "C42"]
[WhiteElo "2408"]
[BlackElo "2263"]
[Annotator "ChessBase"]
[PlyCount "61"]
[EventDate "2018.09.05"]
[EventType "swiss"]
[EventCountry "TUR"]
[SourceTitle "playchess.com"]
[Source "ChessBase"]
[SourceQuality "1"]
[TimeControl "40/5400+30:1800+30"]

1. e4 {[%emt 0:00:30]} e5 {[%emt 0:01:30]} 2. Nf3 {[%emt 0:00:00]} Nf6 {[%emt 0:00:30]} 3. Nxe5 {[%emt 0:00:00]} d6 {[%emt 0:00:00]} 4. Nf3 {[%emt 0:00:30]} Nxe4 {[%emt 0:00:00]} 5. c4 {[%emt 0:00:00]} Nc6 {[%emt 0:00:30]} 6. d4 {[%emt 0:06:00]} d5 {[%emt 0:00:30]} 7. Nc3 {[%emt 0:08:30]} Bb4 {[%emt 0:02:30]} 8. Qc2 {[%emt 0:02:30]} Bg4 {[%emt 0:05:30]} 9. Be3 {[%emt 0:01:30]} O-O {[%emt 0:40:30]} 10. Be2 {[%emt 0:12:30]} Bf5 {[%emt 0:01:30]} 11. Qc1 {[%emt 0:06:30]} dxc4 {[%emt 0:02:30]} 12. Bxc4 {[%emt 0:04:30]} Nd6 {[%emt 0:01:30]} 13. Be2 {[%emt 0:01:30]} Bg4 {[%emt 0:00:00]} 14. O-O {[%emt 0:03:30]} Nf5 {[%emt 0:01:00]} 15. d5 {[%emt 0:07:30]} Bxf3 {[%emt 0:00:30]} 16. Bxf3 {[%emt 0:00:30]} Ncd4 {[%emt 0:01:30]} 17. Bd1 {[%emt 0:03:30]} Re8 {[%emt 0:04:30]} 18. Bg5 {[%emt 0:06:30]} Qd6 {[%emt 0:04:30]} 19. Qd2 {[%emt 0:02:30]} c5 {[%emt 0:04:30]} 20. Bh5 {[%emt 0:08:30]} Ne7 {[%emt 0:07:09]} 21. Bf4 {[%emt 0:07:53]} Bxc3 {[%emt 0:00:53]} 22. bxc3 {[%emt 0:00:54]} Qxd5 {[%emt 0:00:07]} 23. Bxf7+ {[%emt 0:01:44]} Qxf7 {[%emt 0:00:07]} 24. cxd4 {[%emt 0:00:13]} Rad8 {[%emt 0:00:19]} 25. Bg5 {[%emt 0:01:52]} Rxd4 {[%emt 0:00:25]} 26. Qa5 {[%emt 0:00:31]} Nc6 {[%emt 0:00:55]} 27. Qb5 {[%emt 0:01:41]} a6 {[%emt 0:05:40]} 28. Qb6 {[%emt 0:00:33]} Rb4 {[%emt 0:02:03]} 29. Qxc5 {[%emt 0:00:35]} Rb5 {[%emt 0:00:04]} 30. Qc1 {[%emt 0:00:44]} Nd4 {[%emt 0:00:06]} 31. Qd1 {[%emt 0:02:50]} 0-1

[Event "World Junior U20 Open 2018"]
[Site "Gebze"]
[Date "2018.09.08"]
[Round "5.41"]
[White "Garayev, Kanan"]
[Black "Nogerbek, Kazybek"]
[Result "1/2-1/2"]
[ECO "D37"]
[WhiteElo "2404"]
[BlackElo "2261"]
[Annotator "ChessBase"]
[PlyCount "81"]
[EventDate "2018.09.05"]
[EventType "swiss"]
[EventCountry "TUR"]
[SourceTitle "playchess.com"]
[Source "ChessBase"]
[SourceQuality "1"]
[TimeControl "40/5400+30:1800+30"]

1. d4 {[%emt 0:00:30]} Nf6 {[%emt 0:00:30]} 2. c4 {[%emt 0:00:00]} e6 {[%emt 0:00:00]} 3. Nc3 {[%emt 0:00:00]} d5 {[%emt 0:00:00]} 4. Nf3 {[%emt 0:00:30]} Be7 {[%emt 0:00:30]} 5. Bf4 {[%emt 0:01:30]} O-O {[%emt 0:00:30]} 6. e3 {[%emt 0:00:30]} Nbd7 {[%emt 0:00:30]} 7. Rc1 {[%emt 0:05:30]} dxc4 {[%emt 0:07:30]} 8. Bxc4 {[%emt 0:00:30]} a6 {[%emt 0:00:00]} 9. a4 {[%emt 0:03:30]} c5 {[%emt 0:03:00]} 10. O-O {[%emt 0:02:30]} cxd4 {[%emt 0:02:30]} 11. exd4 {[%emt 0:01:30]} Nb6 {[%emt 0:00:30]} 12. Bd3 {[%emt 0:00:30]} Nbd5 {[%emt 0:00:30]} 13. Bg3 {[%emt 0:02:30]} Bd7 {[%emt 0:03:30]} 14. Ne5 {[%emt 0:02:30]} Bc6 {[%emt 0:01:30]} 15. Nxc6 {[%emt 0:17:30]} bxc6 {[%emt 0:00:00]} 16. Nxd5 {[%emt 0:00:30]} Qxd5 {[%emt 0:06:00]} 17. Qc2 {[%emt 0:12:30]} Rfc8 {[%emt 0:05:30]} 18. Rfd1 {[%emt 0:01:30]} h6 {[%emt 0:04:30]} 19. Be5 {[%emt 0:05:30]} Qd7 {[%emt 0:08:30]} 20. Qe2 {[%emt 0:02:30]} Qb7 {[%emt 0:00:30]} 21. Bc4 {[%emt 0:09:30]} Nd7 {[%emt 0:04:30]} 22. Bg3 {[%emt 0:02:30]} Nb6 {[%emt 0:06:30]} 23. Bd3 {[%emt 0:02:30]} Nd5 {[%emt 0:01:30]} 24. Be5 {[%emt 0:01:30]} Bf6 {[%emt 0:06:30]} 25. Qe4 {[%emt 0:02:30]} g6 {[%emt 0:00:30]} 26. h4 {[%emt 0:02:46]} h5 {[%emt 0:02:30]} 27. Bxf6 {[%emt 0:08:08]} Nxf6 {[%emt 0:00:00]} 28. Qe2 {[%emt 0:00:36]} Rd8 {[%emt 0:02:00]} 29. Bc4 {[%emt 0:02:06]} Qb6 {[%emt 0:04:30]} 30. Qd2 {[%emt 0:03:16]} Kg7 {[%emt 0:01:30]} 31. a5 {[%emt 0:00:56]} Qb7 {[%emt 0:01:30]} 32. b3 {[%emt 0:01:22]} Rd6 {[%emt 0:05:30]} 33. Qe2 {[%emt 0:00:41]} Kg8 {[%emt 0:03:30]} 34. g3 {[%emt 0:00:55]} Qd7 {[%emt 0:01:37]} 35. Bxa6 {[%emt 0:01:48]} Qa7 {[%emt 0:02:07]} 36. Qe5 {[%emt 0:01:10]} Ne8 {[%emt 0:05:12]} 37. Bf1 {[%emt 0:00:52]} Qxa5 {[%emt 0:00:35]} 38. Qxa5 {[%emt 0:01:22]} Rxa5 {[%emt 0:00:01]} 39. Bg2 {[%emt 0:00:52]} Ra6 {[%emt 0:00:25]} 40. Rc4 {[%emt 0:00:00]} Nf6 {[%emt 0:00:00]} 41. Rdc1 {[%emt 0:05:10]} 1/2-1/2

[Event "World Junior U20 Open 2018"]
[Site "Gebze"]
[Date "2018.09.08"]
[Round "5.43"]
[White "Ozer, Omer Faruk"]
[Black "Silva, David"]
[Result "1-0"]
[ECO "A43"]
[WhiteElo "2388"]
[BlackElo "2223"]
[Annotator "NA"]
[PlyCount "61"]
[EventDate "2018.09.05"]
[EventType "swiss"]
[EventCountry "TUR"]
[SourceTitle "playchess.com"]
[Source "ChessBase"]
[SourceQuality "1"]
[TimeControl "40/5400+30:1800+30"]

1. d4 {[%emt 0:01:30]} Nf6 {[%emt 0:00:30]} 2. Nc3 {[%emt 0:00:30]} c5 {[%emt 0:00:30]} 3. d5 {[%emt 0:00:30]} d6 {[%emt 0:00:30]} 4. e4 {[%emt 0:03:30]} g6 {[%emt 0:00:30]} 5. Bb5+ {[%emt 0:00:30]} Bd7 {[%emt 0:01:30]} 6. a4 {[%emt 0:00:30]} Bg7 {[%emt 0:00:00]} 7. Nf3 {[%emt 0:00:30]} O-O {[%emt 0:00:00]} 8. Nd2 {[%emt 0:03:30]} Na6 {[%emt 0:00:30]} 9. O-O {[%emt 0:00:30]} Nc7 {[%emt 0:00:30]} 10. Be2 {[%emt 0:00:30]} a6 {[%emt 0:00:00]} 11. f4 {[%emt 0:14:30]} b5 {[%emt 0:03:00]} 12. Bf3 {[%emt 0:00:30]} b4 {[%emt 0:00:00]} 13. Ne2 {[%emt 0:00:00]} Bg4 {[%emt 0:05:00]} 14. Ng3 {[%emt 0:17:00]} Bxf3 {[%emt 0:02:30]} 15. Nxf3 {[%emt 0:00:00]} Qd7 {[%emt 0:04:30]} 16. Qd3 {[%emt 0:02:00]} Rfc8 {[%emt 0:01:30]} 17. Nd2 {[%emt 0:05:30]} Rab8 {[%emt 0:00:30]} 18. Nc4 {[%emt 0:00:30]} Ng4 {[%emt 0:01:30]} 19. Kh1 {[%emt 0:00:30]} Bd4 {[%emt 0:00:30]} 20. Qf3 {[%emt 0:01:30]} f5 {[%emt 0:00:30]} 21. exf5 {[%emt 0:04:30]} gxf5 {[%emt 0:00:00]} 22. Bd2 {[%emt 0:00:30]} e6 {[%emt 0:01:00]} 23. dxe6 {[%emt 0:21:30]} Qxe6 {[%emt 0:00:00]} 24. Nxd6 {[%emt 0:00:30]} Nxh2 {[%emt 0:05:00]} 25. Kxh2 {[%emt 0:00:30]} Qxd6 {[%emt 0:00:30]} 26. Nxf5 {[%emt 0:00:00]} Qf6 {[%emt 0:00:30]} 27. Qh5 {[%emt 0:00:00]} Kh8 {[%emt 0:02:30]} 28. c3 {[%emt 0:01:30]} bxc3 {[%emt 0:01:30]} 29. bxc3 {[%emt 0:00:00]} Rf8 {[%emt 0:01:30]} 30. Nh4 {[%emt 0:00:00]} Rb2 {[%emt 0:00:30]} 31. Rad1 {[%emt 0:00:30]} 1-0

[Event "World Junior U20 Open 2018"]
[Site "Gebze"]
[Date "2018.09.08"]
[Round "5.45"]
[White "Philippe, Guillaume"]
[Black "De Block, Yordi"]
[Result "1-0"]
[ECO "A02"]
[WhiteElo "2358"]
[BlackElo "2118"]
[Annotator "NA"]
[PlyCount "59"]
[EventDate "2018.09.05"]
[EventType "swiss"]
[EventCountry "TUR"]
[SourceTitle "playchess.com"]
[Source "ChessBase"]
[SourceQuality "1"]
[TimeControl "40/5400+30:1800+30"]

1. f4 {[%emt 0:00:30]} Nh6 {[%emt 0:00:30]} 2. Nf3 {[%emt 0:00:30]} d5 {[%emt 0:00:30]} 3. e3 {[%emt 0:01:30]} Bg4 {[%emt 0:00:00]} 4. Be2 {[%emt 0:00:30]} e6 {[%emt 0:00:00]} 5. O-O {[%emt 0:00:30]} Be7 {[%emt 0:02:30]} 6. d3 {[%emt 0:02:30]} Nf5 {[%emt 0:02:30]} 7. c3 {[%emt 0:03:30]} c5 {[%emt 0:02:30]} 8. Ne5 {[%emt 0:02:30]} Bxe2 {[%emt 0:00:30]} 9. Qxe2 {[%emt 0:00:30]} Nc6 {[%emt 0:04:30]} 10. e4 {[%emt 0:00:30]} dxe4 {[%emt 0:15:30]} 11. dxe4 {[%emt 0:01:30]} Nd6 {[%emt 0:01:30]} 12. Nxc6 {[%emt 0:00:30]} bxc6 {[%emt 0:00:30]} 13. Na3 {[%emt 0:03:30]} O-O {[%emt 0:04:30]} 14. e5 {[%emt 0:01:30]} Nb7 {[%emt 0:03:30]} 15. Be3 {[%emt 0:00:30]} Qb6 {[%emt 0:02:30]} 16. f5 {[%emt 0:01:30]} exf5 {[%emt 0:00:00]} 17. Rxf5 {[%emt 0:00:30]} Nd8 {[%emt 0:01:00]} 18. Raf1 {[%emt 0:00:30]} g6 {[%emt 0:04:30]} 19. R5f3 {[%emt 0:00:30]} Qc7 {[%emt 0:03:30]} 20. Nc4 {[%emt 0:01:30]} Qd7 {[%emt 0:04:30]} 21. Bh6 {[%emt 0:00:30]} Re8 {[%emt 0:00:30]} 22. e6 {[%emt 0:09:30]} Qxe6 {[%emt 0:10:30]} 23. Re3 {[%emt 0:00:00]} Qd7 {[%emt 0:03:30]} 24. Re1 {[%emt 0:00:00]} Ne6 {[%emt 0:00:30]} 25. Ne5 {[%emt 0:00:00]} Qc8 {[%emt 0:04:30]} 26. Nxf7 {[%emt 0:00:00]} Kxf7 {[%emt 0:00:30]} 27. Rxe6 {[%emt 0:00:30]} Qd7 {[%emt 0:08:41]} 28. Qf1+ {[%emt 0:00:30]} Kg8 {[%emt 0:00:19]} 29. Qc4 {[%emt 0:00:00]} Kh8 {[%emt 0:00:45]} 30. Qe4 {[%emt 0:00:00]} 1-0

[Event "World Junior U20 Open 2018"]
[Site "Gebze"]
[Date "2018.09.08"]
[Round "5.46"]
[White "Ozgur, Tibet Kagan"]
[Black "Krishna Teja, N."]
[Result "0-1"]
[ECO "A07"]
[WhiteElo "2056"]
[BlackElo "2356"]
[Annotator "NA"]
[PlyCount "96"]
[EventDate "2018.09.05"]
[EventType "swiss"]
[EventCountry "TUR"]
[SourceTitle "playchess.com"]
[Source "ChessBase"]
[SourceQuality "1"]
[TimeControl "40/5400+30:1800+30"]

1. Nf3 {[%emt 0:00:30]} Nf6 {[%emt 0:00:30]} 2. g3 {[%emt 0:00:00]} d5 {[%emt 0:00:30]} 3. Bg2 {[%emt 0:00:00]} c6 {[%emt 0:00:30]} 4. O-O {[%emt 0:00:30]} Bf5 {[%emt 0:00:00]} 5. d3 {[%emt 0:00:00]} e6 {[%emt 0:00:00]} 6. Nbd2 {[%emt 0:00:00]} Be7 {[%emt 0:00:00]} 7. Qe1 {[%emt 0:01:30]} h6 {[%emt 0:00:00]} 8. e4 {[%emt 0:00:30]} Bh7 {[%emt 0:00:00]} 9. Qe2 {[%emt 0:01:30]} O-O {[%emt 0:00:00]} 10. Re1 {[%emt 0:01:30]} a5 {[%emt 0:02:30]} 11. exd5 $146 {[%emt 0:05:30] A07: Barcza-System (Königsfianchetto mit möglichen Übergängen in andere Systeme)} ({Vorgänger:} 11. a4 Na6 12. Nb3 dxe4 13. dxe4 Bxe4 14. Be3 Nb4 15. Red1 Qc8 16. c3 Nc2 17. Rac1 Nxe3 18. Qxe3 Qc7 {0-1 (39) Hasangatin,R (2505)-Alekseev,E (2636) Sochi 2016}) 11... cxd5 {[%emt 0:00:30]} 12. a4 {[%emt 0:00:30]} Nc6 {[%emt 0:01:30]} 13. Nb3 {[%emt 0:04:30]} Rc8 {[%emt 0:02:30]} 14. c3 {[%emt 0:11:30]} Nd7 {[%emt 0:13:30]} 15. Nfd4 {[%emt 0:17:30]} Nxd4 {[%emt 0:17:30]} 16. Nxd4 {[%emt 0:00:30]} Nc5 {[%emt 0:00:30]} 17. Rd1 {[%emt 0:05:30]} Qd7 {[%emt 0:00:30]} 18. b3 {[%emt 0:12:30]} Bf6 {[%emt 0:10:30]} 19. Ba3 {[%emt 0:08:30]} Rfe8 {[%emt 0:00:00]} 20. Rab1 {[%emt 0:10:47]} Na6 {[%emt 0:04:00]} 21. Qd2 {[%emt 0:02:19]} Bxd4 {[%emt 0:05:30]} 22. cxd4 {[%emt 0:00:30]} Qc7 {[%emt 0:00:00]} 23. Rdc1 {[%emt 0:00:56]} Qb6 {[%emt 0:00:00]} 24. Rxc8 {[%emt 0:06:26]} Rxc8 {[%emt 0:00:00]} 25. Bf1 {[%emt 0:00:15]} Bg6 {[%emt 0:03:00]} 26. Be2 $17 {[%emt 0:07:18]} Nb4 {[%emt 0:01:30]} 27. Bxb4 {[%emt 0:01:56]} Qxb4 {[%emt 0:00:00]} 28. Qb2 {[%emt 0:00:31]} Rc3 {[%emt 0:00:00]} 29. Kf1 {[%emt 0:00:28]} Rxd3 {[%emt 0:02:30]} 30. Bxd3 {[%emt 0:01:00]} Bxd3+ {[%emt 0:00:00]} 31. Kg1 {[%emt 0:00:00]} Bxb1 {[%emt 0:00:00]} 32. Qxb1 {[%emt 0:00:00]} Qxd4 {[%emt 0:00:30]} 33. Qc2 {[%emt 0:00:23]} b6 {[%emt 0:00:30]} 34. Qc8+ {[%emt 0:00:30]} Kh7 {[%emt 0:00:30]} 35. Qc2+ {[%emt 0:00:30]} g6 {[%emt 0:00:30]} 36. Qc7 {[%emt 0:00:30]} Kg7 {[%emt 0:00:30]} 37. h4 {[%emt 0:00:30]} h5 {[%emt 0:00:30]} 38. Qc2 {[%emt 0:00:30]} e5 {[%emt 0:00:30]} 39. Qe2 {[%emt 0:00:30]} e4 {[%emt 0:00:30]} 40. Qc2 {[%emt 0:00:30]} e3 {[%emt 0:00:30]} 41. fxe3 {[%emt 0:30:30]} Qxe3+ {[%emt 0:30:30]} 42. Kh2 {[%emt 0:00:30]} d4 {[%emt 0:00:30]} 43. Qc7 {[%emt 0:00:00]} Qf2+ {[%emt 0:00:00]} 44. Kh1 {[%emt 0:00:00]} Qe1+ {[%emt 0:00:00]} 45. Kh2 {[%emt 0:00:00]} d3 {[%emt 0:00:00]} 46. Qxb6 {[%emt 0:00:00]} d2 {[%emt 0:00:00]} 47. Qd4+ {[%emt 0:00:00]} Kh7 {[%emt 0:00:00]} 48. Qd5 {[%emt 0:00:00]} Qe2+ {[%emt 0:00:00]} 0-1